bitfinex-derivatives/quotes_BTCF0:USTF0_20250614
["timestamp","ask_amount","ask_price","bid_price","bid_amount"]
[1749886635115,1e-07,105180.0,105170.0,1.88831163]
[1749886635315,0.0323,105200.0,105190.0,0.1900477]
[1749886635618,0.3931,105210.0,105200.0,0.1900296]
[1749886635919,0.63735843,105210.0,105200.0,0.23184566]
[1749886636214,0.76759075,105210.0,105200.0,0.99993606]
[1749886636414,0.76759075,105210.0,105200.0,0.95812]
[1749886636615,0.1900296,105200.0,105190.0,1.02883652]
[1749886636819,0.77576192,105200.0,105190.0,1.02883652]
[1749886637019,0.77576192,105200.0,105190.0,1.98691652]
[1749886637220,0.77576192,105200.0,105190.0,0.20711652]
[1749886637412,0.77576192,105200.0,105190.0,1.98691652]
[1749886637609,0.78076192,105200.0,105190.0,0.20711652]
[1749886637919,0.78176192,105200.0,105190.0,1.98691652]
[1749886638421,0.78176192,105200.0,105190.0,1.02883652]
[1749886638616,0.78176192,105200.0,105190.0,1.98691652]
[1749886638815,0.78176192,105200.0,105190.0,0.20711652]
[1749886639012,0.78176192,105200.0,105190.0,1.98683652]
[1749886639218,0.78176192,105200.0,105190.0,0.20711652]
[1749886639520,0.78176192,105200.0,105190.0,1.98683652]
[1749886639821,0.78590027,105200.0,105190.0,1.98683652]
[1749886640219,0.78590027,105200.0,105190.0,0.20711652]
[1749886640523,0.65566795,105200.0,105190.0,1.98683652]
[1749886640925,0.65566795,105200.0,105190.0,2.0287182]
[1749886641420,0.65566795,105200.0,105190.0,2.15895052]
[1749886643627,0.62556795,105200.0,105190.0,2.15895052]
[1749886643823,0.26476795,105200.0,105190.0,2.22405052]
[1749886644026,0.62556795,105200.0,105190.0,2.22405052]
[1749886647337,0.62556795,105200.0,105190.0,2.26827115]
[1749886647534,0.43553835,105200.0,105190.0,2.26827115]
[1749886647736,0.59326795,105200.0,105190.0,2.26827115]
[1749886647937,0.59326795,105200.0,105190.0,2.17053883]
[1749886648126,0.59326795,105200.0,105190.0,2.30077115]
[1749886649238,0.59326795,105200.0,105190.0,2.26827115]
[1749886649431,0.62626795,105200.0,105190.0,2.07293883]
[1749886651137,0.62626795,105200.0,105190.0,2.07285883]
[1749886651935,0.75650027,105200.0,105190.0,1.11489883]
[1749886652134,0.75650027,105200.0,105190.0,2.07285883]
[1749886652331,0.62626795,105200.0,105190.0,2.07285883]
[1749886654041,0.62626795,105200.0,105190.0,1.11489883]
[1749886654244,0.62626795,105200.0,105190.0,2.07285883]
[1749886660042,0.62626795,105200.0,105190.0,1.11489883]
[1749886660232,0.62626795,105200.0,105190.0,2.07273883]
[1749886660436,0.62626795,105200.0,105190.0,2.13214572]
[1749886661239,0.62626795,105200.0,105190.0,2.07273883]
[1749886661544,0.71524371,105200.0,105190.0,2.07273883]
[1749886662846,0.84547603,105200.0,105190.0,0.27629056]
[1749886663047,0.84547603,105200.0,105190.0,0.08624486]
[1749886663235,0.84547603,105200.0,105190.0,0.99986423]
[1749886663642,0.84547603,105200.0,105190.0,0.22334423]
[1749886664139,0.87501772,105200.0,105190.0,0.04202423]
[1749886664335,0.1900477,105190.0,105180.0,0.82156]
[1749886664634,0.1900838,105170.0,105160.0,1.32004452]
[1749886664839,0.9116838,105170.0,105160.0,2.2250375]
[1749886665046,1.0074838,105170.0,105160.0,2.2250375]
[1749886665244,1.0074838,105170.0,105160.0,2.16563061]
[1749886665445,1.0074838,105170.0,105160.0,1.20783061]
[1749886665642,1.0074838,105170.0,105160.0,2.16567061]
[1749886666444,1.0074838,105170.0,105160.0,2.17567061]
[1749886666942,1.0074838,105170.0,105160.0,2.13744998]
[1749886667142,1.0074838,105170.0,105160.0,1.17960998]
[1749886667351,1.0074838,105170.0,105160.0,2.13752998]
[1749886668244,1.0074838,105170.0,105160.0,0.87960238]
[1749886668440,1.13771612,105170.0,105160.0,2.02758418]
[1749886668645,1.0074838,105170.0,105160.0,2.02758418]
[1749886668849,1.0074838,105170.0,105160.0,1.9855418]
[1749886669155,1.09645167,105170.0,105160.0,0.83756]
[1749886669451,1.13771612,105170.0,105160.0,1.9856219]
[1749886670149,1.22668399,105170.0,105160.0,1.79552]
[1749886670352,1.14185447,105170.0,105160.0,1.9856219]
[1749886670544,1.01162215,105170.0,105160.0,1.9856219]
[1749886670951,1.01162215,105170.0,105160.0,1.79552]
[1749886671251,1.01162215,105170.0,105160.0,1.9856219]
[1749886673552,1.01162215,105170.0,105160.0,2.00045333]
[1749886674249,1.01162215,105170.0,105160.0,1.9856219]
[1749886674655,1.01162215,105170.0,105160.0,2.00045332]
[1749886674850,1.01162215,105170.0,105160.0,1.9856219]
[1749886675054,1.01162215,105170.0,105160.0,2.00045326]
[1749886675354,1.01162215,105170.0,105160.0,2.00045318]
[1749886675555,1.01162215,105170.0,105160.0,1.9856219]
[1749886678654,0.97912215,105170.0,105160.0,2.0465219]
[1749886683053,0.97912215,105170.0,105160.0,2.0466419]
[1749886683456,0.97912215,105170.0,105160.0,2.08856152]
[1749886688359,0.97912215,105170.0,105160.0,2.08865167]
[1749886689357,0.97912215,105170.0,105160.0,2.0466419]
[1749886689663,0.97912215,105170.0,105160.0,2.08866637]
[1749886691058,1.06809002,105170.0,105160.0,2.08866637]
[1749886691762,1.06809002,105170.0,105160.0,2.08866627]
[1749886698467,0.97912215,105170.0,105160.0,2.08866627]
[1749886699270,0.97912215,105170.0,105160.0,2.13309773]
[1749886699968,0.97912215,105170.0,105160.0,1.94299593]
[1749886700771,0.97912215,105170.0,105160.0,1.89856447]
[1749886701069,0.97912215,105170.0,105160.0,2.08866637]
[1749886701270,1.12564893,105170.0,105160.0,2.23519315]
[1749886701466,2.09647161,105170.0,105150.0,0.05954944]
[1749886701671,0.2376719,105150.0,105140.0,1.17184787]
[1749886701971,0.74499868,105150.0,105140.0,1.16660678]
[1749886702166,0.74499868,105150.0,105140.0,1.19870678]
[1749886702367,0.83396807,105150.0,105140.0,1.19870678]
[1749886703069,0.83396807,105150.0,105140.0,0.0941]
[1749886703270,0.83396807,105150.0,105140.0,1.05218]
[1749886703865,0.70621077,105150.0,105140.0,1.38884478]
[1749886704065,0.84270281,105150.0,105140.0,1.39784478]
[1749886704265,0.46313333,105150.0,105140.0,1.40584478]
[1749886704464,0.37416394,105150.0,105140.0,1.40584478]
[1749886704666,0.29696176,105150.0,105140.0,1.40584478]
[1749886705070,0.65776176,105150.0,105140.0,1.40584478]
[1749886705273,0.65776176,105150.0,105140.0,1.40443547]
[1749886705575,0.65776176,105150.0,105140.0,1.40443561]
[1749886705871,0.65776176,105150.0,105140.0,1.40443556]
[1749886706273,0.67708541,105150.0,105140.0,1.40443556]
[1749886706473,0.67708541,105150.0,105140.0,2.22635556]
[1749886706769,0.65776176,105150.0,105140.0,2.2114928]
[1749886707271,0.65776176,105150.0,105140.0,2.22635552]
[1749886707665,0.65776176,105150.0,105140.0,2.22635555]
[1749886708072,0.65776176,105150.0,105140.0,2.2114928]
[1749886708272,0.65776176,105150.0,105140.0,2.22635527]
[1749886708572,0.65776176,105150.0,105140.0,2.22635525]
[1749886708966,0.65776176,105150.0,105140.0,2.22635526]
[1749886709163,0.73497155,105150.0,105140.0,2.22635526]
[1749886709366,0.73497155,105150.0,105140.0,2.2114928]
[1749886710074,0.73497155,105150.0,105140.0,2.22635526]
[1749886710471,0.73497155,105150.0,105140.0,2.2114928]
[1749886710672,0.73497155,105150.0,105140.0,2.22635526]
[1749886711270,0.73497155,105150.0,105140.0,2.2114928]
[1749886711573,0.73497155,105150.0,105140.0,2.22635526]
[1749886712871,0.73497155,105150.0,105140.0,2.2114928]
[1749886713077,0.73497155,105150.0,105140.0,2.22635526]
[1749886714475,0.67568169,105150.0,105140.0,2.22635526]
[1749886714678,0.73494853,105150.0,105140.0,2.22635526]
[1749886715279,0.73494853,105150.0,105140.0,2.2114928]
[1749886715479,0.73494853,105150.0,105140.0,2.22635527]
[1749886716079,0.73908688,105150.0,105140.0,2.22635527]
[1749886716380,0.73908688,105150.0,105140.0,2.09610047]
[1749886716876,0.73908688,105150.0,105140.0,2.09610114]
[1749886717884,0.73908688,105150.0,105140.0,2.09610095]
[1749886718085,0.73908688,105150.0,105140.0,2.09610096]
[1749886718383,0.73908688,105150.0,105140.0,2.081238]
[1749886718979,0.73908688,105150.0,105140.0,2.09610081]
[1749886719581,0.73908688,105150.0,105140.0,2.081238]
[1749886720279,0.73908688,105150.0,105140.0,2.09610081]
[1749886721384,0.73908688,105150.0,105140.0,2.22635561]
[1749886721584,0.73908688,105150.0,105140.0,2.2114928]
[1749886721889,0.73908688,105150.0,105140.0,2.22635561]
[1749886722087,0.73908688,105150.0,105140.0,2.2114928]
[1749886722390,0.73908688,105150.0,105140.0,2.22635561]
[1749886722585,0.73908688,105150.0,105140.0,2.2114928]
[1749886722791,0.73908688,105150.0,105140.0,2.22635561]
[1749886723682,0.73908688,105150.0,105140.0,2.2114928]
[1749886723883,0.73908688,105150.0,105140.0,2.22635561]
[1749886725683,0.73908688,105150.0,105140.0,2.2114928]
[1749886725886,0.73908688,105150.0,105140.0,2.22635561]
[1749886726589,0.73908688,105150.0,105140.0,2.2114928]
[1749886726889,0.73908688,105150.0,105140.0,2.22635561]
[1749886727081,0.73908688,105150.0,105140.0,2.2114928]
[1749886727276,0.73908688,105150.0,105140.0,2.24264954]
[1749886727479,0.73908688,105150.0,105140.0,2.22778673]
[1749886727679,0.73908688,105150.0,105140.0,2.24264956]
[1749886728888,0.73908688,105150.0,105140.0,2.22778673]
[1749886729089,0.73908688,105150.0,105140.0,2.24264956]
[1749886729591,0.73908688,105150.0,105140.0,2.22778673]
[1749886730183,0.73908688,105150.0,105140.0,2.24264956]
[1749886731490,0.73908688,105150.0,105140.0,2.09610083]
[1749886731792,0.71062004,105150.0,105140.0,2.28397632]
[1749886731993,0.71062004,105150.0,105140.0,2.26911349]
[1749886732395,0.71062004,105150.0,105140.0,2.34337155]
[1749886732996,0.71062004,105150.0,105140.0,2.32850872]
[1749886733196,0.71062004,105150.0,105140.0,2.34337155]
[1749886733402,0.94613816,105150.0,105140.0,2.34337155]
[1749886734494,0.94613816,105150.0,105140.0,2.24927155]
[1749886734697,1.00993816,105150.0,105140.0,2.24927162]
[1749886734997,1.00993816,105150.0,105140.0,2.23440872]
[1749886735198,0.86338943,105150.0,105140.0,2.24927163]
[1749886735398,0.86338943,105150.0,105140.0,2.29620872]
[1749886735598,0.86338943,105150.0,105140.0,2.31107162]
[1749886736598,1.00993816,105150.0,105140.0,2.29620872]
[1749886736793,1.00993816,105150.0,105140.0,2.31107162]
[1749886737199,1.00993816,105150.0,105140.0,2.3110716]
[1749886737602,1.00993816,105150.0,105140.0,2.29620872]
[1749886737898,1.00993816,105150.0,105140.0,2.3110716]
[1749886738091,1.00993816,105150.0,105140.0,2.29620872]
[1749886738291,1.00993816,105150.0,105140.0,2.3110716]
[1749886738497,1.00993816,105150.0,105140.0,2.29620872]
[1749886738802,0.72123753,105150.0,105140.0,2.29620872]
[1749886738995,0.72123753,105150.0,105140.0,2.32850872]
[1749886739298,0.72123753,105150.0,105140.0,2.34337125]
[1749886739497,0.72123753,105150.0,105140.0,2.34337121]
[1749886739893,0.72123753,105150.0,105140.0,2.32850872]
[1749886740200,0.72123753,105150.0,105140.0,2.34337123]
[1749886740400,0.63226814,105150.0,105140.0,2.3433711]
[1749886741202,0.63226814,105150.0,105140.0,2.34337108]
[1749886741897,0.44214814,105150.0,105140.0,2.43248142]
[1749886742093,0.44214814,105150.0,105140.0,2.43248115]
[1749886742300,0.00413835,105150.0,105140.0,2.88043465]
[1749886742603,0.00413835,105150.0,105140.0,2.88043357]
[1749886743000,0.00413835,105150.0,105140.0,2.88043327]
[1749886743500,0.00413835,105150.0,105140.0,2.87640854]
[1749886743701,0.00413835,105150.0,105140.0,2.88043324]
[1749886743903,0.00413835,105150.0,105140.0,2.89126938]
[1749886744102,0.00413835,105150.0,105140.0,2.89126934]
[1749886744501,0.00413835,105150.0,105140.0,2.88043338]
[1749886744901,0.00413835,105150.0,105140.0,2.90829014]
[1749886745199,0.00413835,105150.0,105140.0,2.89746817]
[1749886745403,0.00413835,105150.0,105140.0,2.8934293]
[1749886745602,0.00413835,105150.0,105140.0,2.88260733]
[1749886745904,0.00413835,105150.0,105140.0,2.9082901]
[1749886746098,0.00413835,105150.0,105140.0,2.61519267]
[1749886746300,0.00413835,105150.0,105140.0,2.88260733]
[1749886746598,0.00413835,105150.0,105140.0,2.9082901]
[1749886746896,0.00413835,105150.0,105140.0,2.88260733]
[1749886747101,0.00413835,105150.0,105140.0,2.89348669]
[1749886747302,0.00413835,105150.0,105140.0,2.88260733]
[1749886747507,0.00413835,105150.0,105140.0,2.90834753]
[1749886747702,0.00413835,105150.0,105140.0,2.90834748]
[1749886747902,0.00413835,105150.0,105140.0,2.89746813]
[1749886748104,0.00413835,105150.0,105140.0,2.89746812]
[1749886748306,0.00413835,105150.0,105140.0,2.88260733]
[1749886748506,0.00413835,105150.0,105140.0,2.89348667]
[1749886749206,0.00413835,105150.0,105140.0,2.89746812]
[1749886749406,0.00413835,105150.0,105140.0,2.74476396]
[1749886749909,0.00413835,105150.0,105140.0,2.74476397]
[1749886750095,0.00413835,105150.0,105140.0,2.73388463]
[1749886750303,0.00413835,105150.0,105140.0,2.72990317]
[1749886750607,0.00413835,105150.0,105140.0,2.73388463]
[1749886750800,0.00413835,105150.0,105140.0,2.74475828]
[1749886751102,5e-08,105150.0,105140.0,2.96067656]
[1749886751295,0.82577695,105180.0,105170.0,0.1900838]
[1749886751494,0.82577695,105180.0,105170.0,1.36177136]
[1749886751495,0.87452198,105180.0,105170.0,1.36177136]
[1749886751706,0.90742198,105180.0,105170.0,1.34691228]
[1749886751908,0.90742198,105180.0,105170.0,1.33603929]
[1749886752107,0.90742198,105180.0,105170.0,1.36177093]
[1749886752304,0.90742198,105180.0,105170.0,1.35089802]
[1749886752605,0.82700148,105180.0,105170.0,1.33603929]
[1749886752804,0.82800148,105180.0,105170.0,1.40173929]
[1749886753009,0.82800148,105180.0,105170.0,1.42747086]
[1749886753197,0.82800148,105180.0,105170.0,1.41659796]
[1749886753400,0.82800148,105180.0,105170.0,1.41261218]
[1749886753599,0.82800148,105180.0,105170.0,1.41659794]
[1749886753806,0.82800148,105180.0,105170.0,1.40173929]
[1749886754006,0.83000148,105180.0,105170.0,1.42747085]
[1749886754306,0.86060148,105180.0,105170.0,1.41261219]
[1749886754507,0.86060148,105180.0,105170.0,1.42747085]
[1749886754706,0.86060148,105180.0,105170.0,1.42747083]
[1749886754905,0.86060148,105180.0,105170.0,1.41261219]
[1749886755106,0.86060148,105180.0,105170.0,1.41659794]
[1749886755409,0.86060148,105180.0,105170.0,1.42747085]
[1749886755604,0.86060148,105180.0,105170.0,1.4274552]
[1749886755902,0.86060148,105180.0,105170.0,1.4274789]
[1749886756107,0.81308228,105180.0,105170.0,1.42747888]
[1749886756310,0.81308228,105180.0,105170.0,1.41262022]
[1749886756609,0.81308228,105180.0,105170.0,1.42747888]
[1749886757108,0.81308228,105180.0,105170.0,1.41262022]
[1749886757311,0.81308228,105180.0,105170.0,1.42747888]
[1749886757808,0.81308228,105180.0,105170.0,1.41659795]
[1749886758004,0.81308228,105180.0,105170.0,1.40173929]
[1749886758304,0.81308228,105180.0,105170.0,1.26607149]
[1749886758511,0.81308228,105180.0,105170.0,1.41659794]
[1749886758710,0.81308228,105180.0,105170.0,1.42747887]
[1749886758910,0.81308228,105180.0,105170.0,1.40173929]
[1749886759107,0.81308228,105180.0,105170.0,1.42747887]
[1749886759709,0.81722063,105180.0,105170.0,1.41659794]
[1749886760007,0.81722063,105180.0,105170.0,1.42747887]
[1749886760204,0.81722063,105180.0,105170.0,1.39507887]
[1749886760403,0.81722063,105180.0,105170.0,1.38022022]
[1749886760806,0.81722063,105180.0,105170.0,1.39507888]
[1749886761006,0.81722063,105180.0,105170.0,1.38022022]
[1749886761309,0.81722063,105180.0,105170.0,1.23367149]
[1749886761513,0.81722063,105180.0,105170.0,1.36933929]
[1749886761708,0.81722063,105180.0,105170.0,1.39507904]
[1749886761908,0.81722063,105180.0,105170.0,1.23367154]
[1749886762215,0.81722063,105180.0,105170.0,1.39507904]
[1749886762505,0.81722063,105180.0,105170.0,1.36933929]
[1749886762711,0.81722063,105180.0,105170.0,1.39507904]
[1749886762906,0.81722063,105180.0,105170.0,1.38022027]
[1749886763112,0.81722063,105180.0,105170.0,1.39507904]
[1749886763314,0.81722063,105180.0,105170.0,1.39507903]
[1749886763708,0.81722063,105180.0,105170.0,1.39507904]
[1749886764517,0.51765971,105180.0,105170.0,1.38419806]
[1749886764813,0.70772541,105180.0,105170.0,1.42717883]
[1749886765011,0.70772541,105180.0,105170.0,1.42717877]
[1749886765213,0.70772541,105180.0,105170.0,1.42717875]
[1749886766010,0.70772541,105180.0,105170.0,1.28063002]
[1749886766216,0.70772541,105180.0,105170.0,1.41629785]
[1749886766413,0.70772541,105180.0,105170.0,1.41232019]
[1749886766813,0.70772541,105180.0,105170.0,1.42717875]
[1749886767008,0.70772541,105180.0,105170.0,1.42717876]
[1749886767209,0.70772541,105180.0,105170.0,1.41232019]
[1749886767417,0.70772541,105180.0,105170.0,1.42717874]
[1749886767710,0.70772541,105180.0,105170.0,1.41232019]
[1749886767911,0.70772541,105180.0,105170.0,1.41629786]
[1749886768117,0.70772541,105180.0,105170.0,1.4123202]
[1749886768512,0.70772541,105180.0,105170.0,1.42717877]
[1749886768706,0.70772541,105180.0,105170.0,1.42717876]
[1749886768912,0.74002541,105180.0,105170.0,1.41232019]
[1749886769418,0.74002541,105180.0,105170.0,1.42717878]
[1749886769617,0.74002541,105180.0,105170.0,1.4123202]
[1749886769915,0.88657414,105180.0,105170.0,0.24626914]
[1749886770114,0.91977414,105180.0,105170.0,1.36154069]
[1749886770318,0.91977414,105180.0,105170.0,1.33583929]
[1749886770515,0.77322541,105180.0,105170.0,1.34668219]
[1749886770713,0.91977414,105180.0,105170.0,1.36154117]
[1749886772923,0.91977414,105180.0,105170.0,1.36157932]
[1749886773121,0.91977414,105180.0,105170.0,1.34672034]
[1749886773324,0.91977414,105180.0,105170.0,1.36157932]
[1749886774022,0.91977414,105180.0,105170.0,1.35069827]
[1749886774424,1.00874353,105180.0,105170.0,1.36157932]
[1749886774622,1.00874353,105180.0,105170.0,1.35069827]
[1749886774922,1.00874353,105180.0,105170.0,1.36157932]
[1749886775525,1.00874353,105180.0,105170.0,1.33583929]
[1749886775819,1.00874353,105180.0,105170.0,1.36156507]
[1749886776020,1.00874353,105180.0,105170.0,1.36156506]
[1749886776317,1.00874353,105180.0,105170.0,1.36156507]
[1749886776523,1.00874353,105180.0,105170.0,1.39113365]
[1749886776715,1.00874353,105180.0,105170.0,1.38026685]
[1749886776916,1.00874353,105180.0,105170.0,1.40599263]
[1749886777326,1.00874353,105180.0,105170.0,1.39113365]
[1749886777527,1.00874353,105180.0,105170.0,1.39511961]
[1749886777825,1.00874353,105180.0,105170.0,1.39118575]
[1749886778025,1.00874353,105180.0,105170.0,1.40603851]
[1749886778220,1.00874353,105180.0,105170.0,1.39511961]
[1749886778618,1.00874353,105180.0,105170.0,1.4060385]
[1749886778921,0.8621948,105180.0,105170.0,1.38026685]
[1749886779114,0.8621948,105180.0,105170.0,1.43653822]
[1749886779426,0.8289948,105180.0,105170.0,1.45861943]
[1749886779724,0.8289948,105180.0,105170.0,1.44376685]
[1749886780023,0.8289948,105180.0,105170.0,1.45861942]
[1749886780213,0.8289948,105180.0,105170.0,1.46952198]
[1749886780418,0.7966948,105180.0,105170.0,1.51791635]
[1749886780725,0.7966948,105180.0,105170.0,1.54911634]
[1749886781025,0.7966948,105180.0,105170.0,1.560034]
[1749886781226,0.7966948,105180.0,105170.0,1.54519767]
[1749886781819,0.7966948,105180.0,105170.0,1.560034]
[1749886782123,0.7966948,105180.0,105170.0,1.54519767]
[1749886782425,0.7966948,105180.0,105170.0,1.560034]
[1749886782723,0.7966948,105180.0,105170.0,1.56001539]
[1749886782914,0.7966948,105180.0,105170.0,1.54909773]
[1749886783119,0.7966948,105180.0,105170.0,1.56001539]
[1749886783725,0.7966948,105180.0,105170.0,1.53428001]
[1749886784221,0.7644948,105180.0,105170.0,1.5600143]
[1749886784524,0.6644948,105180.0,105170.0,1.56001429]
[1749886784724,0.6644948,105180.0,105170.0,1.56000858]
[1749886784921,0.6644948,105180.0,105170.0,1.5451915]
[1749886785126,0.6644948,105180.0,105170.0,1.56000858]
[1749886785521,0.6644948,105180.0,105170.0,1.56000859]
[1749886785826,0.6644948,105180.0,105170.0,1.54519151]
[1749886786221,0.6644948,105180.0,105170.0,1.5490971]
[1749886786528,0.6644948,105180.0,105170.0,1.5600086]
[1749886786827,0.6644948,105180.0,105170.0,1.56000857]
[1749886787022,0.6644948,105180.0,105170.0,1.5600086]
[1749886787222,0.6644948,105180.0,105170.0,1.54956326]
[1749886787623,0.6644948,105180.0,105170.0,1.54956324]
[1749886787926,0.6644948,105180.0,105170.0,1.56047473]
[1749886788224,0.6644948,105180.0,105170.0,1.56047474]
[1749886788431,0.6644948,105180.0,105170.0,2.38219474]
[1749886788627,0.6644948,105180.0,105170.0,2.38218845]
[1749886789027,0.6644948,105180.0,105170.0,2.36738067]
[1749886789227,0.6644948,105180.0,105170.0,2.38218844]
[1749886789620,0.6644948,105180.0,105170.0,2.37127394]
[1749886789828,0.6644948,105180.0,105170.0,2.38218844]
[1749886790028,0.6644948,105180.0,105170.0,2.38218845]
[1749886790323,0.6644948,105180.0,105170.0,2.38218842]
[1749886790528,0.6644948,105180.0,105170.0,2.37127394]
[1749886790726,0.6644948,105180.0,105170.0,2.38218843]
[1749886790920,0.6644948,105180.0,105170.0,2.36738067]
[1749886791125,0.6644948,105180.0,105170.0,2.38218845]
[1749886791325,0.6644948,105180.0,105170.0,2.36738067]
[1749886791622,0.6644948,105180.0,105170.0,2.38218845]
[1749886792422,0.6644948,105180.0,105170.0,2.36738067]
[1749886792625,0.6644948,105180.0,105170.0,2.38219892]
[1749886793526,0.6644948,105180.0,105170.0,2.36738067]
[1749886793728,0.6644948,105180.0,105170.0,2.35646617]
[1749886793923,0.4744291,105180.0,105170.0,2.38219892]
[1749886794225,0.09610774,105180.0,105170.0,2.38219892]
[1749886794428,0.09610774,105180.0,105170.0,2.36738067]
[1749886794726,0.09610774,105180.0,105170.0,2.38219946]
[1749886794930,0.09610774,105180.0,105170.0,2.38219945]
[1749886795124,0.09610774,105180.0,105170.0,2.36738158]
[1749886795326,0.09610774,105180.0,105170.0,2.38219951]
[1749886795530,0.09410774,105180.0,105170.0,2.37628411]
[1749886795925,0.09410774,105180.0,105170.0,2.51893031]
[1749886796120,0.09410774,105180.0,105170.0,2.38719952]
[1749886796333,0.09410774,105180.0,105170.0,2.37628411]
[1749886796524,0.09310774,105180.0,105170.0,2.37238157]
[1749886796720,0.09310774,105180.0,105170.0,2.3802841]
[1749886796927,0.09310774,105180.0,105170.0,2.37638157]
[1749886797129,0.09310774,105180.0,105170.0,2.38028411]
[1749886797330,0.09310774,105180.0,105170.0,2.39119952]
[1749886797929,0.09310774,105180.0,105170.0,2.37638158]
[1749886798129,0.00413835,105180.0,105170.0,2.39117277]
[1749886798333,0.00413835,105180.0,105170.0,2.33568924]
[1749886798630,0.00413835,105180.0,105170.0,2.34660457]
[1749886798831,0.00413835,105180.0,105170.0,2.34659982]
[1749886799024,0.00413835,105180.0,105170.0,2.33180874]
[1749886799737,0.00413835,105180.0,105170.0,2.3466009]
[1749886800531,0.00413835,105180.0,105170.0,2.33568985]
[1749886800838,0.00413835,105180.0,105170.0,2.3318092]
[1749886801135,0.00413835,105180.0,105170.0,2.3466009]
[1749886801332,0.00413835,105180.0,105170.0,2.42464592]
[1749886801637,0.00413835,105180.0,105170.0,2.94289551]
[1749886801938,0.00413835,105180.0,105170.0,2.94288348]
[1749886802130,0.00413835,105180.0,105170.0,2.92811735]
[1749886802328,0.00413835,105180.0,105170.0,2.9428834]
[1749886803136,0.00413835,105180.0,105170.0,2.93198267]
[1749886803339,0.00413835,105180.0,105170.0,2.92811735]
[1749886803639,0.00413835,105180.0,105170.0,2.9428834]
[1749886803837,0.00413835,105180.0,105170.0,2.93198267]
[1749886804137,0.00413835,105180.0,105170.0,2.93198266]
[1749886804537,0.00413835,105180.0,105170.0,2.9428834]
[1749886804739,0.00413835,105180.0,105170.0,2.94288339]
[1749886805038,0.00413835,105180.0,105170.0,2.93198264]
[1749886805235,0.00413835,105180.0,105170.0,2.94287861]
[1749886805537,0.00413835,105180.0,105170.0,2.91721662]
[1749886805738,0.00413835,105180.0,105170.0,2.95815877]
[1749886806232,0.00413835,105180.0,105170.0,2.9472628]
[1749886806440,0.00413835,105180.0,105170.0,2.94339275]
[1749886806632,0.00413835,105180.0,105170.0,2.9472628]
[1749886806831,0.00413835,105180.0,105170.0,2.95815877]
[1749886807638,0.00413835,105180.0,105170.0,2.9472628]
[1749886807840,0.00413835,105180.0,105170.0,2.94336042]
[1749886808833,0.00413835,105180.0,105170.0,2.93249678]
[1749886809138,0.00413835,105180.0,105170.0,2.94335599]
[1749886809642,0.00413835,105180.0,105170.0,2.93249678]
[1749886809943,0.00413835,105180.0,105170.0,2.94335599]
[1749886810340,0.00413835,105180.0,105170.0,2.93249678]
[1749886810541,0.00413835,105180.0,105170.0,2.92807583]
[1749886810934,0.00413835,105180.0,105170.0,2.91721662]
[1749886811129,0.00413835,105180.0,105170.0,2.92807583]
[1749886811734,0.00413835,105180.0,105170.0,2.91721662]
[1749886811934,0.00413835,105180.0,105170.0,0.9707271]
[1749886812228,0.73405278,105180.0,105170.0,1.11968942]
[1749886812435,0.79865278,105180.0,105170.0,2.28500652]
[1749886812643,0.79865278,105180.0,105170.0,2.22569363]
[1749886813236,0.79865278,105180.0,105170.0,1.26829371]
[1749886813635,0.79865278,105180.0,105170.0,2.2147938]
[1749886814044,0.79865278,105180.0,105170.0,2.22566365]
[1749886814341,0.79865278,105180.0,105170.0,1.26830697]
[1749886814541,0.79865278,105180.0,105170.0,1.2574338]
[1749886814843,0.79965278,105180.0,105170.0,2.218667]
[1749886815146,0.80265278,105180.0,105170.0,2.06611827]
[1749886815345,0.80265278,105180.0,105170.0,2.212667]
[1749886815735,0.80265278,105180.0,105170.0,2.2017938]
[1749886816044,0.80265278,105180.0,105170.0,2.22747594]
[1749886816438,0.80265278,105180.0,105170.0,2.21660274]
[1749886816637,0.65610405,105180.0,105170.0,1.12356721]
[1749886816939,0.89162217,105180.0,105170.0,2.03641871]
[1749886817135,0.89162217,105180.0,105170.0,2.02160977]
[1749886817331,0.89162217,105180.0,105170.0,2.03646953]
[1749886817536,0.89162217,105180.0,105170.0,2.02559602]
[1749886817744,0.89162217,105180.0,105170.0,2.01073626]
[1749886817943,0.89162217,105180.0,105170.0,2.03646976]
[1749886818143,0.89162217,105180.0,105170.0,2.02160983]
[1749886818440,0.89162217,105180.0,105170.0,2.18301849]
[1749886818643,0.89162217,105180.0,105170.0,2.16815856]
[1749886818842,0.89162217,105180.0,105170.0,2.18301848]
[1749886819245,0.89162217,105180.0,105170.0,2.18304081]
[1749886819537,0.89162217,105180.0,105170.0,2.16818089]
[1749886819740,0.89162217,105180.0,105170.0,2.18304081]
[1749886820543,0.89162217,105180.0,105170.0,2.17214491]
[1749886820746,0.89162217,105180.0,105170.0,2.18301719]
[1749886821642,0.89162217,105180.0,105170.0,2.17214491]
[1749886821846,0.89162217,105180.0,105170.0,2.15728499]
[1749886822145,0.89162217,105180.0,105170.0,2.17214491]
[1749886822345,0.89162217,105180.0,105170.0,2.18301719]
[1749886822739,0.89162217,105180.0,105170.0,2.17214491]
[1749886822940,0.89162217,105180.0,105170.0,2.18301719]
[1749886823139,0.89162217,105180.0,105170.0,2.17214491]
[1749886823539,0.89162217,105180.0,105170.0,2.18302524]
[1749886823735,0.89162217,105180.0,105170.0,2.15728499]
[1749886823941,0.89162217,105180.0,105170.0,2.18302524]
[1749886824240,0.89162217,105180.0,105170.0,2.17214489]
[1749886824441,0.89162217,105180.0,105170.0,2.18302522]
[1749886824641,0.89162217,105180.0,105170.0,2.16816532]
[1749886825236,0.89162217,105180.0,105170.0,2.18302522]
[1749886825441,0.89162217,105180.0,105170.0,2.16816532]
[1749886825648,0.89162217,105180.0,105170.0,2.17214489]
[1749886825843,0.89162217,105180.0,105170.0,2.15728499]
[1749886826050,0.89162217,105180.0,105170.0,2.18302522]
[1749886826550,0.89162217,105180.0,105170.0,2.17214489]
[1749886826849,0.89162217,105180.0,105170.0,2.18302522]
[1749886827052,0.89162217,105180.0,105170.0,2.18302505]
[1749886827348,0.89162217,105180.0,105170.0,2.16816532]
[1749886827549,0.89162217,105180.0,105170.0,2.18302497]
[1749886827748,0.89162217,105180.0,105170.0,2.16816526]
[1749886827944,0.89162217,105180.0,105170.0,2.18302495]
[1749886828343,0.89162217,105180.0,105170.0,2.16816525]
[1749886828752,0.74507344,105180.0,105170.0,2.18303126]
[1749886828956,0.65610405,105180.0,105170.0,2.18303064]
[1749886829251,0.65610405,105180.0,105170.0,2.21523054]
[1749886829557,0.65610405,105180.0,105170.0,2.21523041]
[1749886829849,0.65610405,105180.0,105170.0,2.2003713]
[1749886830348,0.65610405,105180.0,105170.0,2.18948499]
[1749886830552,0.65610405,105180.0,105170.0,2.21523028]
[1749886830938,0.74507344,105180.0,105170.0,2.2152305]
[1749886831144,0.65610405,105180.0,105170.0,2.20434417]
[1749886831345,0.65610405,105180.0,105170.0,2.18948499]
[1749886831650,0.65610405,105180.0,105170.0,2.21525356]
[1749886831842,0.74507344,105180.0,105170.0,2.20434368]
[1749886832043,0.74507344,105180.0,105170.0,2.21525372]
[1749886832543,0.74507344,105180.0,105170.0,2.20039499]
[1749886832944,0.74507344,105180.0,105170.0,2.21525402]